fUSD/lending_fUSD_20251221
["ID","MTS","AMOUNT","RATE_DAILY","PERIOD"]
[399412182,1766333452420,-1000.0,0.0003528,2]
[399412183,1766333452430,-1000.0,0.00035283,2]
[399412184,1766333452439,-3762.98,0.000353,2]
[399412185,1766333452449,-1000.0,0.00035303,2]
[399412186,1766333452459,-150.0,0.00035304,2]
[399412187,1766333452468,-150.0,0.0003532,2]
[399412188,1766333452478,-1000.0,0.00035332,2]
[399412189,1766333452488,-150.0,0.00035334,2]
[399412190,1766333452498,-170.67,0.00035342,2]
[399412191,1766333452508,-150.0,0.00035347,2]
[399412192,1766333452518,-1000.0,0.00035356,2]
[399412193,1766333452527,-1000.0,0.0003536,2]
[399412194,1766333452537,-1000.0,0.00035377,2]
[399412195,1766333452546,-1000.0,0.00035412,2]
[399412196,1766333452556,-150.0,0.00035429,2]
[399412197,1766333452566,-150.0,0.00035444,2]
[399412198,1766333452576,-150.0,0.00035466,2]
[399412199,1766333452586,-1000.0,0.00035469,2]
[399412200,1766333452596,-2000.0,0.000355,2]
[399412201,1766333452605,-1000.0,0.00035515,2]
[399412202,1766333452616,-150.0,0.00035533,2]
[399412203,1766333452626,-1000.0,0.0003554,2]
[399412204,1766333452639,-150.0,0.00035609,7]
[399412205,1766333452649,-150.0,0.00035609,7]
[399412206,1766333452658,-150.0,0.00035609,7]
[399412207,1766333452668,-150.0,0.00035609,7]
[399412208,1766333452677,-150.0,0.00035609,7]
[399412209,1766333452687,-150.0,0.00035609,7]
[399412210,1766333452697,-166807.57706454,0.0003561,2]
[399412211,1766333452707,-151.0,0.0003561,14]
[399412212,1766333452717,-333.58035403,0.00035616,27]
[399412213,1766333452727,-200.0,0.00035616,2]
[399412214,1766333452736,-152.0,0.00035616,7]
[399412215,1766333452746,-152.0,0.00035616,7]
[399412216,1766333452756,-152.0,0.00035616,7]
[399412217,1766333452766,-152.0,0.00035616,7]
[399412218,1766333452775,-152.0,0.00035616,7]
[399412219,1766333452785,-152.0,0.00035616,7]
[399412220,1766333452795,-152.0,0.00035616,7]
[399412221,1766333452804,-152.0,0.00035616,7]
[399412222,1766333452813,-152.0,0.00035616,7]
[399412223,1766333452823,-152.0,0.00035616,7]
[399412224,1766333452833,-152.0,0.00035616,7]
[399412225,1766333452842,-152.0,0.00035616,7]
[399412226,1766333452852,-293.98088878,0.00035616,7]
[399412227,1766333452862,-200.0,0.00035616,2]
[399412228,1766333452872,-800.0,0.00035616,13]
[399412229,1766333452881,-800.0,0.00035616,13]
[399412230,1766333452890,-800.0,0.00035616,13]
[399412231,1766333452900,-800.0,0.00035616,13]
[399412232,1766333452909,-800.0,0.00035616,13]
[399412233,1766333452919,-800.0,0.00035616,13]
[399412234,1766333452929,-800.0,0.00035616,13]
[399412235,1766333452938,-800.0,0.00035616,13]
[399412236,1766333452947,-152.0,0.00035616,7]
[399412237,1766333452957,-152.0,0.00035616,7]
[399412238,1766333452967,-152.0,0.00035616,7]
[399412239,1766333452976,-152.0,0.00035616,7]
[399412240,1766333452986,-152.0,0.00035616,7]
[399412241,1766333452996,-152.0,0.00035616,7]
[399412242,1766333453006,-1255.0,0.00035616,7]
[399412243,1766333453016,-152.0,0.00035616,7]
[399412244,1766333453026,-152.0,0.00035616,7]
[399412245,1766333453036,-1255.0,0.00035616,7]
[399412246,1766333453045,-152.0,0.00035616,7]
[399412247,1766333453055,-152.0,0.00035616,7]
[399412248,1766333453065,-1255.0,0.00035616,7]
[399412249,1766333453075,-152.0,0.00035616,7]
[399412250,1766333453086,-163.3857876,0.00035616,7]
[399412251,1766333453096,-1255.0,0.00035616,7]
[399412252,1766333453106,-152.0,0.00035616,7]
[399412253,1766333453115,-1255.0,0.00035616,7]
[399412254,1766333453125,-152.0,0.00035616,7]
[399412255,1766333453135,-1255.0,0.00035616,7]
[399412256,1766333453144,-152.0,0.00035616,7]
[399412257,1766333453155,-1255.0,0.00035616,7]
[399412258,1766333453165,-152.0,0.00035616,7]
[399412259,1766333453175,-152.0,0.00035616,7]
[399412260,1766333453185,-1255.0,0.00035616,7]
[399412261,1766333453195,-152.0,0.00035616,7]
[399412262,1766333453205,-1143.79214042,0.00035616,7]
[399412263,1766333453215,-152.0,0.00035616,7]
[399412264,1766333453225,-152.0,0.00035616,7]
[399412265,1766333453235,-152.0,0.00035616,7]
[399412266,1766333453244,-152.0,0.00035616,7]
[399412267,1766333453254,-152.0,0.00035616,7]
[399412268,1766333453263,-152.0,0.00035616,7]
[399412269,1766333453274,-152.0,0.00035616,7]
[399412270,1766333453284,-152.0,0.00035616,7]
[399412271,1766333453293,-152.0,0.00035616,7]
[399412272,1766333453303,-152.0,0.00035616,7]
[399412273,1766333453312,-152.0,0.00035616,7]
[399412274,1766333453322,-152.0,0.00035616,7]
[399412275,1766333453332,-152.0,0.00035616,7]
[399412276,1766333453342,-152.0,0.00035616,7]
[399412277,1766333453351,-152.0,0.00035616,7]
[399412278,1766333453361,-152.0,0.00035616,7]
[399412279,1766333453371,-201.78882936,0.00035616,7]
[399412280,1766333453380,-154.0,0.00035616,7]
[399412281,1766333453390,-154.0,0.00035616,7]
[399412282,1766333453399,-154.0,0.00035616,7]
[399412283,1766333453409,-154.0,0.00035616,7]
[399412284,1766333453419,-154.67231427,0.00035616,7]
[399412285,1766333453429,-250.5,0.00035616,2]
[399412286,1766333453439,-1325.0,0.00035663,2]
[399412287,1766333453449,-612.0,0.00035663,2]
[399412288,1766333453459,-1609.0,0.00035663,2]
[399412289,1766333453469,-518.0,0.00035663,2]
[399412290,1766333453479,-1262.0,0.00035663,2]
[399412291,1766333453489,-3071.1,0.00035679,4]
[399412292,1766333453499,-200.0,0.00035972,2]
[399412293,1766333453509,-200.0,0.00035972,2]
[399412294,1766333453519,-1310.0,0.00036,2]
[399412295,1766333453528,-3762.98,0.00036,2]
[399412296,1766333453538,-157.0,0.00036,30]
[399412297,1766333453548,-273.181,0.00036004,43]
[399412298,1766333453557,-463.94482134,0.00036172,2]
[399412299,1766333453568,-507.33,0.000363,14]
[399412300,1766333453578,-200.0,0.00036332,2]
[399412301,1766333453587,-200.0,0.00036695,2]
[399412302,1766333453597,-600.83,0.000368,14]
[399412303,1766333453607,-2417.64,0.000369,14]
[399412304,1766333453617,-151.0,0.00036986,15]
[399412305,1766333453627,-151.0,0.00036986,15]
[399412306,1766333453644,-151.0,0.00036986,15]
[399412307,1766333453663,-151.0,0.00036986,15]
[399412308,1766333453685,-151.0,0.00036986,15]
[399412309,1766333453698,-151.0,0.00036986,15]
[399412310,1766333453708,-151.0,0.00036986,15]
[399412311,1766333453723,-151.0,0.00036986,15]
[399412312,1766333453733,-151.0,0.00036986,15]
[399412313,1766333453744,-182.877133,0.00036986,15]
[399412314,1766333453754,-536.32,0.00036986,2]
[399412315,1766333453764,-471.0,0.00037,2]
[399412316,1766333453774,-200.0,0.00037062,2]
[399412317,1766333453783,-487.0,0.000372,2]
[399412318,1766333453793,-157.0,0.00037397,30]
[399412319,1766333453803,-3071.1,0.00037485,5]
[399412320,1766333453813,-2643.772134,0.000375,29]
[399412321,1766333453823,-481.11077973,0.00037541,2]
[399412322,1766333453832,-507.33,0.000376,14]
[399412323,1766333453842,-150.0,0.00037808,2]
[399412324,1766333453852,-165.0,0.000379,120]
[399412325,1766333453862,-600.83,0.00038,14]
[399412326,1766333453872,-348.0359741,0.00038,120]
[399412327,1766333453881,-983.0,0.00038,2]
[399412328,1766333453890,-410.0,0.00038,60]
[399412329,1766333453900,-1500.0,0.00038,29]
[399412330,1766333453910,-200.0,0.00038024,2]
[399412331,1766333453920,-200.0,0.00038024,2]
[399412332,1766333453930,-200.0,0.00038024,2]
[399412333,1766333453941,-200.0,0.00038024,2]
[399412334,1766333453950,-200.0,0.00038024,2]
[399412335,1766333453960,-200.0,0.00038024,2]
[399412336,1766333453970,-200.0,0.00038024,2]
[399412337,1766333453979,-200.0,0.00038024,2]
[399412338,1766333453990,-200.0,0.00038024,2]
[399412339,1766333454000,-200.0,0.00038024,2]
[399412340,1766333454010,-200.0,0.00038024,2]
[399412341,1766333454019,-200.0,0.00038024,2]
[399412342,1766333454029,-200.0,0.00038024,2]
[399412343,1766333454039,-200.0,0.00038024,2]
[399412344,1766333454050,-200.0,0.00038024,2]
[399412345,1766333454060,-200.0,0.00038024,2]
[399412346,1766333454070,-200.0,0.00038024,2]
[399412347,1766333454080,-200.0,0.00038024,2]
[399412348,1766333454090,-200.0,0.00038024,2]
[399412349,1766333454099,-200.0,0.00038024,2]
[399412350,1766333454109,-200.0,0.00038024,2]
[399412351,1766333454119,-200.0,0.00038024,2]
[399412352,1766333454130,-200.0,0.00038024,2]
[399412353,1766333454140,-200.0,0.00038024,2]
[399412354,1766333454150,-200.0,0.00038024,2]
[399412355,1766333454161,-200.0,0.00038024,2]
[399412356,1766333454170,-200.0,0.00038024,2]
[399412357,1766333454180,-200.0,0.00038024,2]
[399412358,1766333454189,-200.0,0.00038024,2]
[399412359,1766333454199,-200.0,0.00038024,2]
[399412360,1766333454209,-200.0,0.00038024,2]
[399412361,1766333454219,-200.0,0.00038024,2]
[399412362,1766333454230,-200.0,0.00038024,2]
[399412363,1766333454240,-200.0,0.00038024,2]
[399412364,1766333454249,-200.0,0.00038024,2]
[399412365,1766333454260,-345.0,0.00038024,2]
[399412366,1766333454269,-2417.64,0.000383,14]
[399412367,1766333454278,-250.0,0.00038356,14]
[399412368,1766333454288,-150.0,0.00038396,2]
[399412369,1766333454297,-250.0,0.000384,14]
[399412370,1766333454307,-250.0,0.000384,14]
[399412371,1766333454317,-250.0,0.000384,14]
[399412372,1766333454327,-250.0,0.000384,14]
[399412373,1766333454337,-250.0,0.000384,14]
[399412374,1766333454347,-250.0,0.000384,14]
[399412375,1766333454356,-250.0,0.000384,14]
[399412376,1766333454365,-250.0,0.000384,14]
[399412377,1766333454375,-250.0,0.000384,14]
[399412378,1766333454385,-250.0,0.000384,14]
[399412379,1766333454394,-250.0,0.000384,14]
[399412380,1766333454404,-250.0,0.000384,14]
[399412381,1766333454413,-250.0,0.000384,14]
[399412382,1766333454422,-250.0,0.000384,14]
[399412383,1766333454432,-250.0,0.000384,14]
[399412384,1766333454442,-250.0,0.000384,14]
[399412385,1766333454452,-250.0,0.000384,14]
[399412386,1766333454461,-250.0,0.000384,14]
[399412387,1766333454712,-250.0,0.000384,14]
[399412388,1766333454764,-250.0,0.000384,14]
[399412389,1766333454774,-250.0,0.000384,14]
[399412390,1766333454783,-250.0,0.000384,14]
[399412391,1766333454793,-291.5,0.000384,14]
[399412392,1766333454803,-549.68,0.00038458,60]
[399412393,1766333454812,-500.0,0.0003846,60]
[399412394,1766333454821,-20746.90904315,0.00038485,10]
[399412395,1766333454831,-25000.0,0.00038485,10]
[399412396,1766333454841,-576.44899553,0.00038488,2]
[399412397,1766333454850,-302.70668584,0.00038488,2]
[399412398,1766333454860,-300.0,0.00038488,2]
[399412399,1766333454870,-303.74388553,0.00038488,2]
[399412400,1766333454880,-300.0,0.00038488,2]
[399412401,1766333454890,-300.0,0.00038488,2]
[399412402,1766333454899,-367.30463184,0.00038488,2]
[399412403,1766333454909,-300.0,0.00038488,2]
[399412404,1766333454918,-300.0,0.00038488,2]
[399412405,1766333454927,-302.95619983,0.00038488,2]
[399412406,1766333454937,-300.0,0.00038488,2]
[399412407,1766333454947,-300.0,0.00038488,2]
[399412408,1766333454957,-510.33020578,0.00038488,2]
[399412409,1766333454967,-300.0,0.00038488,2]
[399412410,1766333454976,-300.0,0.00038488,2]
[399412411,1766333454986,-300.0,0.00038488,2]
[399412412,1766333454996,-594.28559279,0.00038488,2]
[399412413,1766333455006,-363.49948483,0.00038488,2]
[399412414,1766333455015,-300.0,0.00038488,2]
[399412415,1766333455024,-300.0,0.00038488,2]
[399412416,1766333455034,-300.0,0.00038488,2]
[399412417,1766333455043,-300.0,0.00038488,2]
[399412418,1766333455052,-300.0,0.00038488,2]
[399412419,1766333455062,-300.0,0.00038488,2]
[399412420,1766333455072,-302.57000292,0.00038488,2]
[399412421,1766333455082,-300.0,0.00038488,2]
[399412422,1766333455091,-576.44899553,0.00038488,2]
[399412423,1766333455101,-302.70668584,0.00038488,2]
[399412424,1766333455111,-300.0,0.00038488,2]
[399412425,1766333455121,-303.74388553,0.00038488,2]
[399412426,1766333455130,-300.0,0.00038488,2]
[399412427,1766333455140,-300.0,0.00038488,2]
[399412428,1766333455150,-367.30463184,0.00038488,2]
[399412429,1766333455160,-300.0,0.00038488,2]
[399412430,1766333455169,-300.0,0.00038488,2]
[399412431,1766333455178,-302.95619983,0.00038488,2]
[399412432,1766333455188,-300.0,0.00038488,2]
[399412433,1766333455198,-300.0,0.00038488,2]
[399412434,1766333455207,-510.33020578,0.00038488,2]
[399412435,1766333455218,-300.0,0.00038488,2]
[399412436,1766333455228,-300.0,0.00038488,2]
[399412437,1766333455238,-300.0,0.00038488,2]
[399412438,1766333455248,-594.28559279,0.00038488,2]
[399412439,1766333455258,-363.49948483,0.00038488,2]
[399412440,1766333455268,-300.0,0.00038488,2]
[399412441,1766333455277,-300.0,0.00038488,2]
[399412442,1766333455287,-300.0,0.00038488,2]
[399412443,1766333455296,-300.0,0.00038488,2]
[399412444,1766333455305,-300.0,0.00038488,2]
[399412445,1766333455316,-300.0,0.00038488,2]
[399412446,1766333455326,-302.57000292,0.00038488,2]
[399412447,1766333455336,-300.0,0.00038488,2]
[399412448,1766333455345,-576.44899553,0.00038488,2]
[399412449,1766333455355,-302.70668584,0.00038488,2]
[399412450,1766333455365,-300.0,0.00038488,2]
[399412451,1766333455374,-303.74388553,0.00038488,2]
[399412452,1766333455385,-300.0,0.00038488,2]
[399412453,1766333455394,-300.0,0.00038488,2]
[399412454,1766333455404,-367.30463184,0.00038488,2]
[399412455,1766333455414,-300.0,0.00038488,2]
[399412456,1766333455423,-300.0,0.00038488,2]
[399412457,1766333455433,-302.95619983,0.00038488,2]
[399412458,1766333455443,-300.0,0.00038488,2]
[399412459,1766333455453,-300.0,0.00038488,2]
[399412460,1766333455462,-510.33020578,0.00038488,2]
[399412461,1766333455471,-318.99866021,0.00038488,2]
[399412462,1766333455481,-300.0,0.00038488,2]
[399412463,1766333455490,-300.0,0.00038488,2]
[399412464,1766333455500,-594.28559279,0.00038488,2]
[399412465,1766333455510,-363.49948483,0.00038488,2]
[399412466,1766333455520,-300.0,0.00038488,2]
[399412467,1766333455530,-300.0,0.00038488,2]
[399412468,1766333455539,-300.0,0.00038488,2]
[399412469,1766333455549,-300.0,0.00038488,2]
[399412470,1766333455559,-300.0,0.00038488,2]
[399412471,1766333455568,-300.0,0.00038488,2]
[399412472,1766333455578,-302.57000292,0.00038488,2]
[399412473,1766333455588,-300.0,0.00038488,2]
[399412474,1766333455598,-576.44899553,0.00038488,2]
[399412475,1766333455608,-302.70668584,0.00038488,2]
[399412476,1766333455618,-300.0,0.00038488,2]
[399412477,1766333455628,-303.74388553,0.00038488,2]
[399412478,1766333455639,-300.0,0.00038488,2]
[399412479,1766333455649,-300.0,0.00038488,2]
[399412480,1766333455659,-367.30463184,0.00038488,2]
[399412481,1766333455669,-300.0,0.00038488,2]
[399412482,1766333455679,-300.0,0.00038488,2]
[399412483,1766333455689,-302.95619983,0.00038488,2]
[399412484,1766333455699,-300.0,0.00038488,2]
[399412485,1766333455708,-300.0,0.00038488,2]
[399412486,1766333455720,-510.33020578,0.00038488,2]
[399412487,1766333455730,-300.0,0.00038488,2]
[399412488,1766333455739,-300.07858594,0.00038488,2]
[399412489,1766333455749,-594.28559279,0.00038488,2]
[399412490,1766333455760,-363.49948483,0.00038488,2]
[399412491,1766333455769,-300.0,0.00038488,2]
[399412492,1766333455779,-300.0,0.00038488,2]
[399412493,1766333455792,-300.0,0.00038488,2]
[399412494,1766333455805,-300.0,0.00038488,2]
[399412495,1766333455814,-303.0286836,0.00038488,2]
[399412496,1766333455823,-300.0,0.00038488,2]
[399412497,1766333455833,-302.57000292,0.00038488,2]
[399412498,1766333455842,-576.44899553,0.00038488,2]
[399412499,1766333455851,-300.0,0.00038488,2]
[399412500,1766333455861,-302.70668584,0.00038488,2]
[399412501,1766333455870,-300.0,0.00038488,2]
[399412502,1766333455879,-303.74388553,0.00038488,2]
[399412503,1766333455889,-300.0,0.00038488,2]
[399412504,1766333455898,-300.0,0.00038488,2]
[399412505,1766333455907,-367.30463184,0.00038488,2]
[399412506,1766333455917,-314.77971105,0.00038488,2]
[399412507,1766333455926,-300.0,0.00038488,2]
[399412508,1766333455935,-302.95619983,0.00038488,2]
[399412509,1766333455945,-525.34385625,0.00038488,2]
[399412510,1766333455954,-361.99637359,0.00038488,2]
[399412511,1766333455963,-590.59450419,0.00038488,2]
[399412512,1766333455974,-422.74490988,0.00038488,2]
[399412513,1766333455983,-594.28559279,0.00038488,2]
[399412514,1766333455994,-363.49948483,0.00038488,2]
[399412515,1766333456005,-300.0,0.00038488,2]
[399412516,1766333456015,-300.0,0.00038488,2]
[399412517,1766333456025,-300.0,0.00038488,2]
[399412518,1766333456037,-300.0,0.00038488,2]
[399412519,1766333456047,-300.0,0.00038488,2]
[399412520,1766333456056,-302.57000292,0.00038488,2]
[399412521,1766333456066,-300.0,0.00038488,2]
[399412522,1766333456076,-576.44899553,0.00038488,2]
[399412523,1766333456086,-302.70668584,0.00038488,2]
[399412524,1766333456096,-300.0,0.00038488,2]
[399412525,1766333456105,-303.74388553,0.00038488,2]
[399412526,1766333456114,-300.0,0.00038488,2]
[399412527,1766333456123,-300.0,0.00038488,2]
[399412528,1766333456132,-367.30463184,0.00038488,2]
[399412529,1766333456142,-300.0,0.00038488,2]
[399412530,1766333456151,-302.95619983,0.00038488,2]
[399412531,1766333456162,-594.28559279,0.00038488,2]
[399412532,1766333456171,-363.49948483,0.00038488,2]
[399412533,1766333456180,-300.0,0.00038488,2]
[399412534,1766333456189,-300.0,0.00038488,2]
[399412535,1766333456199,-300.0,0.00038488,2]
[399412536,1766333456208,-300.0,0.00038488,2]
[399412537,1766333456217,-300.0,0.00038488,2]
[399412538,1766333456226,-302.57000292,0.00038488,2]
[399412539,1766333456235,-300.0,0.00038488,2]
[399412540,1766333456245,-576.44899553,0.00038488,2]
[399412541,1766333456254,-302.70668584,0.00038488,2]
[399412542,1766333456264,-300.0,0.00038488,2]
[399412543,1766333456274,-303.74388553,0.00038488,2]
[399412544,1766333456283,-300.0,0.00038488,2]
[399412545,1766333456293,-300.0,0.00038488,2]
[399412546,1766333456303,-367.30463184,0.00038488,2]
[399412547,1766333456312,-300.0,0.00038488,2]
[399412548,1766333456322,-302.95619983,0.00038488,2]
[399412549,1766333456332,-594.28559279,0.00038488,2]
[399412550,1766333456342,-363.49948483,0.00038488,2]
[399412551,1766333456351,-300.0,0.00038488,2]
[399412552,1766333456360,-300.0,0.00038488,2]
[399412553,1766333456370,-300.0,0.00038488,2]
[399412554,1766333456379,-300.0,0.00038488,2]
[399412555,1766333456389,-300.0,0.00038488,2]
[399412556,1766333456399,-302.57000292,0.00038488,2]
[399412557,1766333456408,-313.84060097,0.00038488,2]
[399412558,1766333456418,-576.44899553,0.00038488,2]
[399412559,1766333456428,-302.70668584,0.00038488,2]
[399412560,1766333456438,-400.19812894,0.00038488,2]
[399412561,1766333456447,-303.74388553,0.00038488,2]
[399412562,1766333456457,-300.0,0.00038488,2]
[399412563,1766333456467,-300.0,0.00038488,2]
[399412564,1766333456477,-367.30463184,0.00038488,2]
[399412565,1766333456486,-539.72940195,0.00038488,2]
[399412566,1766333456496,-302.95619983,0.00038488,2]
[399412567,1766333456506,-594.28559279,0.00038488,2]
[399412568,1766333456516,-363.49948483,0.00038488,2]
[399412569,1766333456526,-300.0,0.00038488,2]
[399412570,1766333456536,-300.0,0.00038488,2]
[399412571,1766333456545,-330.78308651,0.00038488,2]
[399412572,1766333456555,-500.3558125,0.00038488,2]
[399412573,1766333456564,-300.0,0.00038488,2]
[399412574,1766333456574,-302.57000292,0.00038488,2]
[399412575,1766333456584,-576.44899553,0.00038488,2]
[399412576,1766333456594,-302.70668584,0.00038488,2]
[399412577,1766333456603,-303.74388553,0.00038488,2]
[399412578,1766333456613,-300.0,0.00038488,2]
[399412579,1766333456623,-308.57281289,0.00038488,2]
[399412580,1766333456634,-367.30463184,0.00038488,2]
[399412581,1766333456647,-302.95619983,0.00038488,2]
[399412582,1766333456657,-594.28559279,0.00038488,2]
[399412583,1766333456667,-363.49948483,0.00038488,2]
[399412584,1766333456677,-300.0,0.00038488,2]
[399412585,1766333456686,-301.45920067,0.00038488,2]
[399412586,1766333456697,-300.0,0.00038488,2]
[399412587,1766333456706,-302.57000292,0.00038488,2]
[399412588,1766333456716,-576.44899553,0.00038488,2]
[399412589,1766333456725,-302.70668584,0.00038488,2]
[399412590,1766333456735,-303.74388553,0.00038488,2]
[399412591,1766333456745,-300.0,0.00038488,2]
[399412592,1766333456754,-367.30463184,0.00038488,2]
[399412593,1766333456764,-302.95619983,0.00038488,2]
[399412594,1766333456774,-594.28559279,0.00038488,2]
[399412595,1766333456786,-363.49948483,0.00038488,2]
[399412596,1766333456796,-300.0,0.00038488,2]
[399412597,1766333456806,-300.0,0.00038488,2]
[399412598,1766333456815,-302.57000292,0.00038488,2]
[399412599,1766333456824,-576.44899553,0.00038488,2]
[399412600,1766333456834,-302.70668584,0.00038488,2]
[399412601,1766333456843,-303.74388553,0.00038488,2]
[399412602,1766333456852,-361.56884868,0.00038488,2]
[399412603,1766333456861,-367.30463184,0.00038488,2]
[399412604,1766333456871,-302.95619983,0.00038488,2]
[399412605,1766333456879,-594.28559279,0.00038488,2]
[399412606,1766333456889,-363.49948483,0.00038488,2]
[399412607,1766333456898,-300.0,0.00038488,2]
[399412608,1766333456907,-446.30280704,0.00038488,2]
[399412609,1766333456916,-302.57000292,0.00038488,2]
[399412610,1766333456926,-576.44899553,0.00038488,2]
[399412611,1766333456935,-302.70668584,0.00038488,2]
[399412612,1766333456944,-303.74388553,0.00038488,2]
[399412613,1766333456954,-367.30463184,0.00038488,2]
[399412614,1766333456964,-302.95619983,0.00038488,2]
[399412615,1766333456974,-501.00000001,0.00038488,2]
[399412616,1766333456983,-594.28559279,0.00038488,2]
[399412617,1766333456992,-363.49948483,0.00038488,2]
[399412618,1766333457002,-300.0,0.00038488,2]
[399412619,1766333457012,-302.57000292,0.00038488,2]
[399412620,1766333457021,-576.44899553,0.00038488,2]
[399412621,1766333457030,-1500.0,0.000385,29]
[399412622,1766333457040,-150.0,0.0003861,30]
[399412623,1766333457051,-612.0,0.00038663,2]
[399412624,1766333457061,-1609.0,0.00038663,2]
[399412625,1766333457070,-518.0,0.00038663,2]
[399412626,1766333457080,-1262.0,0.00038663,2]
[399412627,1766333457090,-10195.477342,0.000388,2]
[399412628,1766333457100,-800.0,0.000389,4]
[399412629,1766333457111,-1360.19288688,0.000389,2]
[399412630,1766333457121,-1413.57889936,0.000389,2]
[399412631,1766333457131,-260.98,0.000389,120]
[399412632,1766333457143,-1584.55557542,0.000389,2]
[399412633,1766333457153,-498.91187858,0.0003891,2]
[399412634,1766333457162,-500.0,0.00038934,60]
[399412635,1766333457171,-500.0,0.00038934,60]
[399412636,1766333457180,-549.68,0.00038934,60]
[399412637,1766333457189,-549.68,0.00038934,60]
[399412638,1766333457198,-400.0,0.0003897,2]
[399412639,1766333457208,-1205757.3709471,0.00038973,4]
[399412640,1766333457376,-8256.15635154,0.00038973,4]
[399412641,1766333457389,-305.57387787,0.00038973,4]
[399412642,1766333458147,-1169.5132345,0.00038973,4]
[399412643,1766333458160,-4287.77,0.00038973,4]
[399412644,1766333458174,-1210.65510416,0.00038973,4]
[399412645,1766333458188,-578.57186378,0.00038973,4]
[399412646,1766333458203,-36501.583421,0.00038973,4]
[399412647,1766333458218,-1659.9274711,0.00038973,4]
[399412648,1766333458255,-457.10686771,0.00020923,2]
[399412649,1766333458268,-470.18413229,0.00020923,2]
[399412650,1766333458278,-409.81586771,0.00023923,2]
[399412651,1766333458291,-501.18413229,0.00023923,2]
[399412652,1766333458302,-21.70225972,0.00025,2]
[399412653,1766333458315,-128.29774028,0.00025,2]
[399412654,1766333458326,-458.04273927,0.000389,2]
[399412655,1766333458336,-62.59804042,0.00038973,4]
[399412656,1766333458350,-466.7936093,0.00038973,4]
[399412657,1766333458367,-1288.95483898,0.00038973,4]
[399412658,1766333458381,-95867.01356386,0.00038973,4]
[399412659,1766333458405,-151.0,0.00015139,2]
[399412660,1766333458415,-341.88102,0.00038973,4]
[399412661,1766333458429,-1715.1,0.00038973,4]
[399412662,1766333458446,-500.0,0.00038973,4]
[399412663,1766333458458,-3411.37260033,0.00038973,4]
[399412664,1766333458471,-3681.900821,0.00038973,4]
[399412665,1766333458487,-254.94538776,0.00038973,4]
[399412666,1766333458500,-339.76564206,0.00038973,4]
[399412667,1766333458623,-911.0,0.00026923,2]
[399412668,1766333458634,-23.40077117,0.00029923,2]
[399412669,1766333458650,-794.30477733,0.00029923,2]
[399412670,1766333458663,-93.2944515,0.00029923,2]
[399412671,1766333458675,-911.0,0.00032923,2]
[399412672,1766333458685,-659.33,0.00033014,2]
[399412673,1766333458696,-911.0,0.00035923,2]
[399412674,1766333458708,-1406.60977323,0.000389,2]
[399412675,1766333458719,-911.0,0.00038923,2]
[399412676,1766333458729,-6154.21511341,0.00038973,4]
[399412677,1766333458748,-4400.33003597,0.00038973,4]
[399412678,1766333458761,-692.33650997,0.00038973,4]
[399412679,1766333458774,-281.178,0.00038973,4]
[399412680,1766333458787,-2682.24482039,0.00038973,4]
[399412681,1766333458799,-2207.29773007,0.00038973,4]